[Event "*** Titled Tuesday Blitz"]
[Site "Chess.com"]
[Date "2021.03.16"]
[Round "6"]
[White "LamaChampetre"]
[Black "JoliyRoger"]
[Result "0-1"]
[WhiteElo "2225"]
[BlackElo "2418"]
[TimeControl "180+1"]
[EndTime "11:05:42 PDT"]
[Termination "JoliyRoger won by resignation"]

1. d4 {[%clk 0:03:00.9]} 1... Nf6 {[%clk 0:02:59.6]} 2. c4 {[%clk 0:03:00.5]}
2... e6 {[%clk 0:03:00]} 3. Nf3 {[%clk 0:03:00.1]} 3... Bb4+ {[%clk 0:03:00.5]}
4. Nbd2 {[%clk 0:02:59]} 4... b6 {[%clk 0:03:00.4]} 5. g3 {[%clk 0:02:58.7]}
5... Bb7 {[%clk 0:03:00.3]} 6. Bg2 {[%clk 0:02:59.2]} 6... O-O {[%clk
0:03:00.8]} 7. O-O {[%clk 0:02:58.7]} 7... Be7 {[%clk 0:03:00]} 8. d5 {[%clk
0:02:37.6]} 8... c6 {[%clk 0:02:49.9]} 9. e4 {[%clk 0:02:21.8]} 9... cxd5 {[%clk
0:02:48.1]} 10. exd5 {[%clk 0:02:19.7]} 10... exd5 {[%clk 0:02:45.8]} 11. Nh4
{[%clk 0:02:19.3]} 11... Bc6 {[%clk 0:02:40]} 12. Nf5 {[%clk 0:02:07.1]} 12...
dxc4 {[%clk 0:02:10.6]} 13. Nxc4 {[%clk 0:02:01.4]} 13... Bxg2 {[%clk
0:02:10.8]} 14. Kxg2 {[%clk 0:02:00.2]} 14... d5 {[%clk 0:02:09.7]} 15. Nce3
{[%clk 0:01:46.5]} 15... Nc6 {[%clk 0:02:08.7]} 16. Re1 {[%clk 0:01:44]} 16...
Bc5 {[%clk 0:01:57.3]} 17. Ng4 {[%clk 0:01:27.5]} 17... d4 {[%clk 0:01:25]} 18.
Qf3 {[%clk 0:00:51.6]} 18... Nxg4 {[%clk 0:01:13.9]} 19. Qxg4 {[%clk 0:00:50.1]}
19... Qd5+ {[%clk 0:01:14.3]} 20. Kg1 {[%clk 0:00:45.7]} 20... g6 {[%clk
0:01:14.3]} 21. Nh6+ {[%clk 0:00:35]} 21... Kg7 {[%clk 0:01:12.4]} 22. Bd2
{[%clk 0:00:19.6]} 22... Rae8 {[%clk 0:01:09.1]} 23. a3 {[%clk 0:00:18.2]} 23...
a5 {[%clk 0:01:08.3]} 24. Rad1 {[%clk 0:00:16.4]} 24... f5 {[%clk 0:00:57.6]}
25. Qh3 {[%clk 0:00:14.9]} 25... d3 {[%clk 0:00:48.2]} 26. Nxf5+ {[%clk
0:00:13.8]} 26... Qxf5 {[%clk 0:00:41.9]} 27. Bh6+ {[%clk 0:00:12.6]} 27... Kg8
{[%clk 0:00:40.3]} 28. Rxe8 {[%clk 0:00:10.5]} 28... Qxf2+ {[%clk 0:00:33.9]}
29. Kh1 {[%clk 0:00:10.2]} 29... Qf3+ {[%clk 0:00:33.2]} 0-1

[Event "*** Titled Tuesday Blitz"]
[Site "Chess.com"]
[Date "2021.03.16"]
[Round "6"]
[White "BogdanDeac"]
[Black "MITerryble"]
[Result "1-0"]
[WhiteElo "2987"]
[BlackElo "2906"]
[TimeControl "180+1"]
[EndTime "11:05:46 PDT"]
[Termination "BogdanDeac won by resignation"]

1. Nf3 {[%clk 0:03:00.9]} 1... Nf6 {[%clk 0:03:00]} 2. d4 {[%clk 0:02:59.8]}
2... e6 {[%clk 0:02:59.8]} 3. g3 {[%clk 0:02:56.5]} 3... b6 {[%clk 0:02:59.6]}
4. c4 {[%clk 0:02:55.9]} 4... Bb4+ {[%clk 0:02:57.9]} 5. Nc3 {[%clk 0:02:55.1]}
5... Bb7 {[%clk 0:02:57.3]} 6. Bg2 {[%clk 0:02:55.4]} 6... O-O {[%clk
0:02:57.1]} 7. O-O {[%clk 0:02:55.6]} 7... Bxc3 {[%clk 0:02:57.1]} 8. bxc3
{[%clk 0:02:55.4]} 8... d6 {[%clk 0:02:57.7]} 9. Re1 {[%clk 0:02:54.1]} 9...
Nbd7 {[%clk 0:02:57.3]} 10. Bh3 {[%clk 0:02:51.8]} 10... Qe7 {[%clk 0:02:55.5]}
11. Nd2 {[%clk 0:02:51.6]} 11... e5 {[%clk 0:02:55.2]} 12. e4 {[%clk 0:02:49.1]}
12... Rfe8 {[%clk 0:02:54.7]} 13. f3 {[%clk 0:02:48.8]} 13... a5 {[%clk
0:02:54.6]} 14. Nf1 {[%clk 0:02:45]} 14... Nh5 {[%clk 0:02:41.2]} 15. Ne3 {[%clk
0:02:34.6]} 15... g6 {[%clk 0:02:41.4]} 16. Nd5 {[%clk 0:02:17.6]} 16... Qd8
{[%clk 0:02:37.3]} 17. Bh6 {[%clk 0:02:00.5]} 17... Nf8 {[%clk 0:02:19.7]} 18.
Bg4 {[%clk 0:01:24.6]} 18... Ng7 {[%clk 0:02:14.7]} 19. f4 {[%clk 0:00:49.3]}
19... c6 {[%clk 0:01:55]} 20. Bg5 {[%clk 0:00:47]} 20... cxd5 {[%clk 0:01:46.6]}
21. Bxd8 {[%clk 0:00:45.8]} 21... Raxd8 {[%clk 0:01:47.5]} 22. cxd5 {[%clk
0:00:39.7]} 22... f5 {[%clk 0:01:45.8]} 23. fxe5 {[%clk 0:00:31.5]} 23... dxe5
{[%clk 0:01:32.6]} 24. Bf3 {[%clk 0:00:28]} 24... Nd7 {[%clk 0:01:31.1]} 25. Rb1
{[%clk 0:00:26]} 25... fxe4 {[%clk 0:01:27.6]} 26. Bxe4 {[%clk 0:00:25.6]} 26...
Nh5 {[%clk 0:01:28]} 27. Bg2 {[%clk 0:00:22.2]} 27... Nhf6 {[%clk 0:01:27.8]}
28. c4 {[%clk 0:00:19.6]} 28... Ba6 {[%clk 0:01:27.1]} 29. dxe5 {[%clk
0:00:18.5]} 29... Nh5 {[%clk 0:01:19.4]} 30. e6 {[%clk 0:00:17.2]} 30... Ndf6
{[%clk 0:01:18.5]} 31. Qd4 {[%clk 0:00:16.3]} 31... b5 {[%clk 0:01:11.7]} 32. c5
{[%clk 0:00:10.3]} 32... Bb7 {[%clk 0:01:10.2]} 33. d6 {[%clk 0:00:09.4]} 33...
Bxg2 {[%clk 0:01:11.1]} 34. Kxg2 {[%clk 0:00:10.1]} 34... g5 {[%clk 0:00:57.7]}
35. e7 {[%clk 0:00:09.6]} 35... Rc8 {[%clk 0:00:51.8]} 36. d7 {[%clk 0:00:09.8]}
36... Nxd7 {[%clk 0:00:52.1]} 37. Qxd7 {[%clk 0:00:10.7]} 37... Ng7 {[%clk
0:00:52.8]} 38. c6 {[%clk 0:00:10.2]} 38... Nh5 {[%clk 0:00:50.6]} 39. Rxb5
{[%clk 0:00:08.9]} 39... Nf6 {[%clk 0:00:50.6]} 40. Qe6+ {[%clk 0:00:08.7]}
40... Kh8 {[%clk 0:00:51.1]} 41. Qxf6+ {[%clk 0:00:08.6]} 1-0

[Event "*** Titled Tuesday Blitz"]
[Site "Chess.com"]
[Date "2021.03.16"]
[Round "6"]
[White "AttackSparrow"]
[Black "ChessLover0108"]
[Result "0-1"]
[WhiteElo "2511"]
[BlackElo "2770"]
[TimeControl "180+1"]
[EndTime "11:05:53 PDT"]
[Termination "ChessLover0108 won by resignation"]

1. e4 {[%clk 0:03:00.9]} 1... c5 {[%clk 0:03:00]} 2. c3 {[%clk 0:02:59.9]} 2...
d6 {[%clk 0:03:00.6]} 3. d3 {[%clk 0:02:59.7]} 3... Nf6 {[%clk 0:03:00.3]} 4.
Nd2 {[%clk 0:02:58.2]} 4... Nc6 {[%clk 0:03:00.8]} 5. h3 {[%clk 0:02:56]} 5...
g6 {[%clk 0:03:01.1]} 6. Ngf3 {[%clk 0:02:54.8]} 6... Bg7 {[%clk 0:03:01.9]} 7.
Be2 {[%clk 0:02:54.4]} 7... O-O {[%clk 0:03:02.6]} 8. O-O {[%clk 0:02:55]} 8...
b5 {[%clk 0:03:03.2]} 9. a4 {[%clk 0:02:54.6]} 9... b4 {[%clk 0:03:03.1]} 10.
Nc4 {[%clk 0:02:54.6]} 10... Rb8 {[%clk 0:03:03.2]} 11. Qc2 {[%clk 0:02:53.9]}
11... d5 {[%clk 0:02:59.2]} 12. Nce5 {[%clk 0:02:46.4]} 12... Nxe5 {[%clk
0:02:52.6]} 13. Nxe5 {[%clk 0:02:47.3]} 13... Bb7 {[%clk 0:02:53.5]} 14. Bf3
{[%clk 0:02:37.7]} 14... dxe4 {[%clk 0:02:48.8]} 15. dxe4 {[%clk 0:02:37.5]}
15... bxc3 {[%clk 0:02:44.5]} 16. bxc3 {[%clk 0:02:35.7]} 16... Nxe4 {[%clk
0:02:41.1]} 17. Nxf7 {[%clk 0:01:56.5]} 17... Rxf7 {[%clk 0:02:42]} 18. Bxe4
{[%clk 0:01:56.5]} 18... Bxe4 {[%clk 0:02:42.9]} 19. Qxe4 {[%clk 0:01:57.1]}
19... Bxc3 {[%clk 0:02:43.4]} 20. Bf4 {[%clk 0:01:47.9]} 20... Rb4 {[%clk
0:02:37.5]} 21. Rad1 {[%clk 0:01:37.9]} 21... Qxd1 {[%clk 0:01:13.4]} 22. Qa8+
{[%clk 0:01:36.1]} 22... Rf8 {[%clk 0:01:13.2]} 23. Qxf8+ {[%clk 0:01:36.6]}
23... Kxf8 {[%clk 0:01:14.1]} 24. Bh6+ {[%clk 0:01:37.2]} 24... Kf7 {[%clk
0:01:14.9]} 25. Rxd1 {[%clk 0:01:36.6]} 25... Rxa4 {[%clk 0:01:15.8]} 26. Rd7
{[%clk 0:01:36.2]} 26... c4 {[%clk 0:01:08.5]} 27. g3 {[%clk 0:01:34.8]} 27...
Bf6 {[%clk 0:01:04.5]} 28. Rc7 {[%clk 0:01:34.3]} 28... c3 {[%clk 0:01:04.2]}
29. Be3 {[%clk 0:01:34.9]} 29... a6 {[%clk 0:01:02.3]} 30. g4 {[%clk 0:01:34.8]}
30... Ra2 {[%clk 0:00:59.9]} 31. g5 {[%clk 0:01:33.6]} 31... Be5 {[%clk
0:00:56.2]} 32. Rc5 {[%clk 0:01:33.6]} 32... Ke6 {[%clk 0:00:54.8]} 33. Kg2
{[%clk 0:01:29.4]} 33... c2 {[%clk 0:00:54.5]} 34. Kf3 {[%clk 0:01:29.3]} 34...
a5 {[%clk 0:00:50]} 35. Ke4 {[%clk 0:01:28.5]} 35... Bd6 {[%clk 0:00:50.1]} 36.
Rc3 {[%clk 0:01:21.8]} 36... a4 {[%clk 0:00:32.2]} 37. Kd3 {[%clk 0:01:19.5]}
37... Ra3 {[%clk 0:00:29.3]} 38. Rxa3 {[%clk 0:01:09.4]} 38... Bxa3 {[%clk
0:00:30.2]} 39. Kxc2 {[%clk 0:01:09.7]} 39... Kf5 {[%clk 0:00:31.1]} 40. Kc3
{[%clk 0:01:05.1]} 40... Bd6 {[%clk 0:00:30.6]} 41. Kc4 {[%clk 0:01:04]} 41...
Ke4 {[%clk 0:00:30.9]} 42. Bc1 {[%clk 0:01:01.5]} 42... Kf3 {[%clk 0:00:30.9]}
43. Be3 {[%clk 0:01:00]} 43... Kg2 {[%clk 0:00:30.7]} 44. h4 {[%clk 0:00:58.6]}
44... Kh3 {[%clk 0:00:31.2]} 45. Bc1 {[%clk 0:00:54.2]} 45... Kxh4 {[%clk
0:00:30]} 46. f4 {[%clk 0:00:55]} 46... Kg4 {[%clk 0:00:30.2]} 47. Kd5 {[%clk
0:00:55.3]} 47... Bxf4 {[%clk 0:00:29.7]} 48. Ba3 {[%clk 0:00:56.2]} 48... Bd6
{[%clk 0:00:30]} 49. Bb2 {[%clk 0:00:56.3]} 49... Kxg5 {[%clk 0:00:29.8]} 50.
Ke6 {[%clk 0:00:57.2]} 50... h5 {[%clk 0:00:30]} 51. Bc3 {[%clk 0:00:56.8]}
51... h4 {[%clk 0:00:30.3]} 52. Bb4 {[%clk 0:00:57.7]} 52... h3 {[%clk
0:00:31.2]} 53. Bxd6 {[%clk 0:00:58.6]} 53... exd6 {[%clk 0:00:31.7]} 0-1

[Event "*** Titled Tuesday Blitz"]
[Site "Chess.com"]
[Date "2021.03.16"]
[Round "6"]
[White "Kotofeyca"]
[Black "Problematique_99"]
[Result "0-1"]
[WhiteElo "2347"]
[BlackElo "2480"]
[TimeControl "180+1"]
[EndTime "11:05:57 PDT"]
[Termination "Problematique_99 won by checkmate"]

1. d4 {[%clk 0:02:55.6]} 1... Nf6 {[%clk 0:02:59.7]} 2. c4 {[%clk 0:02:54.9]}
2... e6 {[%clk 0:02:59.6]} 3. Nf3 {[%clk 0:02:54.7]} 3... c5 {[%clk 0:02:55.4]}
4. Nc3 {[%clk 0:02:53.5]} 4... cxd4 {[%clk 0:02:54.1]} 5. Nxd4 {[%clk
0:02:54.4]} 5... Bb4 {[%clk 0:02:49.5]} 6. g3 {[%clk 0:02:54.1]} 6... O-O {[%clk
0:02:47.7]} 7. Bg2 {[%clk 0:02:53.7]} 7... d5 {[%clk 0:02:47.8]} 8. cxd5 {[%clk
0:02:49.8]} 8... Nxd5 {[%clk 0:02:47.2]} 9. Bd2 {[%clk 0:02:49.9]} 9... Nxc3
{[%clk 0:02:31.1]} 10. bxc3 {[%clk 0:02:48.6]} 10... Bc5 {[%clk 0:02:27]} 11.
O-O {[%clk 0:02:21.3]} 11... Qe7 {[%clk 0:02:24]} 12. Qb3 {[%clk 0:02:13.5]}
12... e5 {[%clk 0:02:14.9]} 13. Nf3 {[%clk 0:02:03.9]} 13... Nc6 {[%clk
0:02:10.8]} 14. Bg5 {[%clk 0:01:55.5]} 14... Qc7 {[%clk 0:02:07.1]} 15. Rab1
{[%clk 0:01:45.5]} 15... Bb6 {[%clk 0:01:59.1]} 16. Bc1 {[%clk 0:01:29.9]} 16...
Be6 {[%clk 0:01:59]} 17. Qc2 {[%clk 0:01:28.5]} 17... f6 {[%clk 0:01:51.2]} 18.
Ba3 {[%clk 0:01:27.7]} 18... Rfd8 {[%clk 0:01:51.1]} 19. Rfd1 {[%clk 0:01:13.2]}
19... Na5 {[%clk 0:01:50.4]} 20. Bb4 {[%clk 0:01:06.4]} 20... Nc4 {[%clk
0:01:48.6]} 21. Nd2 {[%clk 0:01:02.8]} 21... Bxf2+ {[%clk 0:01:23.3]} 22. Kxf2
{[%clk 0:00:22.6]} 22... Qb6+ {[%clk 0:01:22.1]} 23. Ke1 {[%clk 0:00:18]} 23...
Qg1+ {[%clk 0:00:59.6]} 24. Bf1 {[%clk 0:00:14.7]} 24... Ne3 {[%clk 0:00:55.4]}
25. Qe4 {[%clk 0:00:14.7]} 25... Bd5 {[%clk 0:00:37.4]} 26. Qd3 {[%clk 0:00:04]}
26... Ng2# {[%clk 0:00:14]} 0-1

[Event "*** Titled Tuesday Blitz"]
[Site "Chess.com"]
[Date "2021.03.16"]
[Round "6"]
[White "JosefineHeinemann"]
[Black "Unknown_IM"]
[Result "1-0"]
[WhiteElo "2640"]
[BlackElo "2400"]
[TimeControl "180+1"]
[EndTime "11:05:59 PDT"]
[Termination "JosefineHeinemann won by checkmate"]

1. e4 {[%clk 0:03:00.9]} 1... e5 {[%clk 0:02:58]} 2. Nf3 {[%clk 0:03:00.7]} 2...
Nf6 {[%clk 0:02:57.7]} 3. Nxe5 {[%clk 0:03:00.2]} 3... Nc6 {[%clk 0:02:56.9]} 4.
Nxc6 {[%clk 0:02:59.8]} 4... dxc6 {[%clk 0:02:50.3]} 5. d3 {[%clk 0:03:00.1]}
5... Bc5 {[%clk 0:02:43.3]} 6. Be2 {[%clk 0:02:48.2]} 6... h5 {[%clk 0:02:38.2]}
7. c3 {[%clk 0:02:46]} 7... Ng4 {[%clk 0:02:28.4]} 8. d4 {[%clk 0:02:45.6]} 8...
Qh4 {[%clk 0:02:19.2]} 9. g3 {[%clk 0:02:41.3]} 9... Qf6 {[%clk 0:02:16.9]} 10.
f3 {[%clk 0:02:36.8]} 10... h4 {[%clk 0:02:16.5]} 11. fxg4 {[%clk 0:02:23.4]}
11... hxg3 {[%clk 0:02:09]} 12. Be3 {[%clk 0:02:23.3]} 12... Rxh2 {[%clk
0:01:16.1]} 13. Rxh2 {[%clk 0:02:15.3]} 13... gxh2 {[%clk 0:01:05]} 14. Kd2
{[%clk 0:02:15.5]} 14... Qh4 {[%clk 0:00:58.6]} 15. Na3 {[%clk 0:02:13.6]} 15...
Bd6 {[%clk 0:00:44.2]} 16. Nc4 {[%clk 0:02:08.1]} 16... Bg3 {[%clk 0:00:38.6]}
17. Kc2 {[%clk 0:01:58.5]} 17... Be6 {[%clk 0:00:34.8]} 18. Nd2 {[%clk
0:01:55.7]} 18... O-O-O {[%clk 0:00:27.8]} 19. Bf3 {[%clk 0:01:53.3]} 19... Rh8
{[%clk 0:00:17.8]} 20. Qe2 {[%clk 0:01:42.8]} 20... Kb8 {[%clk 0:00:15.4]} 21.
Rh1 {[%clk 0:01:41.9]} 21... g5 {[%clk 0:00:10.4]} 22. Nf1 {[%clk 0:01:39.8]}
22... f6 {[%clk 0:00:05.8]} 23. Qg2 {[%clk 0:01:30.6]} 23... Bd6 {[%clk
0:00:05.3]} 24. e5 {[%clk 0:01:30.3]} 24... fxe5 {[%clk 0:00:06.2]} 25. Rxh2
{[%clk 0:01:28.7]} 25... Qxh2 {[%clk 0:00:06.4]} 26. Nxh2 {[%clk 0:01:26.5]}
26... exd4 {[%clk 0:00:07.3]} 27. Bg1 {[%clk 0:01:15.3]} 27... dxc3 {[%clk
0:00:03.4]} 28. bxc3 {[%clk 0:01:15.1]} 28... Bxa2 {[%clk 0:00:03.7]} 29. Nf1
{[%clk 0:01:13.5]} 29... Bf7 {[%clk 0:00:03]} 30. Ne3 {[%clk 0:01:12.2]} 30...
Re8 {[%clk 0:00:03.5]} 31. Nf5 {[%clk 0:01:11.6]} 31... Bg6 {[%clk 0:00:03.9]}
32. Be4 {[%clk 0:01:07.5]} 32... Bf4 {[%clk 0:00:04.3]} 33. Bd3 {[%clk
0:01:06.6]} 33... Rd8 {[%clk 0:00:03.3]} 34. Bd4 {[%clk 0:01:04.6]} 34... a6
{[%clk 0:00:01.7]} 35. Qe4 {[%clk 0:01:00.9]} 35... Rd5 {[%clk 0:00:02.2]} 36.
Qe6 {[%clk 0:00:56.9]} 36... Bxf5 {[%clk 0:00:02]} 37. gxf5 {[%clk 0:00:57.8]}
37... b6 {[%clk 0:00:02.2]} 38. f6 {[%clk 0:00:57.6]} 38... Ra5 {[%clk
0:00:02.5]} 39. f7 {[%clk 0:00:57.4]} 39... Bd6 {[%clk 0:00:03.4]} 40. Qxd6
{[%clk 0:00:57.6]} 40... Kb7 {[%clk 0:00:04.3]} 41. Qd7 {[%clk 0:00:55.2]} 41...
Ra2+ {[%clk 0:00:04.7]} 42. Kb1 {[%clk 0:00:55.2]} 42... Rg2 {[%clk 0:00:04.6]}
43. f8=Q {[%clk 0:00:55.1]} 43... Rf2 {[%clk 0:00:04.9]} 44. Qfc8+ {[%clk
0:00:54.8]} 44... Ka7 {[%clk 0:00:04.4]} 45. Qdxc7# {[%clk 0:00:55.7]} 1-0

[Event "*** Titled Tuesday Blitz"]
[Site "Chess.com"]
[Date "2021.03.16"]
[Round "6"]
[White "rpragchess"]
[Black "Dyadya81"]
[Result "1-0"]
[WhiteElo "2916"]
[BlackElo "2742"]
[TimeControl "180+1"]
[EndTime "11:06:05 PDT"]
[Termination "rpragchess won on time"]

1. c4 {[%clk 0:03:00.9]} 1... e5 {[%clk 0:02:59.7]} 2. Nc3 {[%clk 0:02:52]} 2...
Bb4 {[%clk 0:02:59.7]} 3. Nd5 {[%clk 0:02:51.2]} 3... Na6 {[%clk 0:02:59]} 4.
Nf3 {[%clk 0:02:48]} 4... e4 {[%clk 0:02:56.3]} 5. Nd4 {[%clk 0:02:47.9]} 5...
Nf6 {[%clk 0:02:53.5]} 6. Qc2 {[%clk 0:02:39.9]} 6... O-O {[%clk 0:02:31.1]} 7.
e3 {[%clk 0:02:35.8]} 7... Re8 {[%clk 0:02:21.8]} 8. b3 {[%clk 0:02:03.6]} 8...
c6 {[%clk 0:02:04.1]} 9. Nxb4 {[%clk 0:01:54.9]} 9... Nxb4 {[%clk 0:02:02.9]}
10. Qc3 {[%clk 0:01:55.4]} 10... c5 {[%clk 0:01:54]} 11. Nc2 {[%clk 0:01:39.5]}
11... a5 {[%clk 0:01:40]} 12. a3 {[%clk 0:01:33.9]} 12... Nc6 {[%clk 0:01:19.5]}
13. Bb2 {[%clk 0:01:27.2]} 13... d6 {[%clk 0:01:17.5]} 14. Be2 {[%clk
0:01:18.3]} 14... Ne5 {[%clk 0:01:12]} 15. f4 {[%clk 0:01:02.6]} 15... exf3
{[%clk 0:01:07.1]} 16. gxf3 {[%clk 0:01:03.5]} 16... b5 {[%clk 0:01:04.4]} 17.
d4 {[%clk 0:00:46.8]} 17... b4 {[%clk 0:01:01.2]} 18. Qd2 {[%clk 0:00:45.9]}
18... cxd4 {[%clk 0:00:45.2]} 19. Nxd4 {[%clk 0:00:46.8]} 19... Bb7 {[%clk
0:00:38.5]} 20. Rg1 {[%clk 0:00:42.8]} 20... Nh5 {[%clk 0:00:15.3]} 21. O-O-O
{[%clk 0:00:25.8]} 21... bxa3 {[%clk 0:00:15.3]} 22. Bxa3 {[%clk 0:00:21.6]}
22... Nf6 {[%clk 0:00:07.8]} 23. Nf5 {[%clk 0:00:19.8]} 23... g6 {[%clk
0:00:08.1]} 24. Nxd6 {[%clk 0:00:19.7]} 24... Re7 {[%clk 0:00:06.7]} 25. f4
{[%clk 0:00:08.2]} 25... Nc6 {[%clk 0:00:03.7]} 26. Bf3 {[%clk 0:00:06.1]} 1-0

[Event "*** Titled Tuesday Blitz"]
[Site "Chess.com"]
[Date "2021.03.16"]
[Round "6"]
[White "Matthew-Fishbein"]
[Black "profofchess"]
[Result "1-0"]
[WhiteElo "2308"]
[BlackElo "2427"]
[TimeControl "180+1"]
[EndTime "11:06:10 PDT"]
[Termination "Matthew-Fishbein won by checkmate"]

1. c4 {[%clk 0:03:00.9]} 1... e5 {[%clk 0:02:59.8]} 2. Nc3 {[%clk 0:03:00.2]}
2... Nc6 {[%clk 0:03:00.1]} 3. g3 {[%clk 0:03:00.3]} 3... Bc5 {[%clk 0:02:59.5]}
4. Bg2 {[%clk 0:03:00.6]} 4... a6 {[%clk 0:02:59.8]} 5. e3 {[%clk 0:02:54.8]}
5... d6 {[%clk 0:02:59.4]} 6. Nge2 {[%clk 0:02:55.1]} 6... Ba7 {[%clk
0:02:58.8]} 7. O-O {[%clk 0:02:54.4]} 7... h5 {[%clk 0:02:58.3]} 8. d4 {[%clk
0:02:39.8]} 8... h4 {[%clk 0:02:54.7]} 9. dxe5 {[%clk 0:02:25.5]} 9... Nxe5
{[%clk 0:02:53.2]} 10. Nf4 {[%clk 0:01:58]} 10... Bg4 {[%clk 0:02:22.9]} 11.
Qa4+ {[%clk 0:01:30.4]} 11... c6 {[%clk 0:02:12.5]} 12. f3 {[%clk 0:01:18.6]}
12... Bd7 {[%clk 0:01:58.9]} 13. g4 {[%clk 0:01:17.2]} 13... h3 {[%clk
0:01:55.2]} 14. Nxh3 {[%clk 0:01:11.8]} 14... Nf6 {[%clk 0:01:13.4]} 15. Nf2
{[%clk 0:00:49.4]} 15... Be6 {[%clk 0:01:05.7]} 16. b3 {[%clk 0:00:41.3]} 16...
b5 {[%clk 0:01:00.1]} 17. cxb5 {[%clk 0:00:40.5]} 17... axb5 {[%clk 0:00:58.8]}
18. Qf4 {[%clk 0:00:36.6]} 18... Ng6 {[%clk 0:00:55.2]} 19. Qg3 {[%clk
0:00:36.3]} 19... d5 {[%clk 0:00:39.5]} 20. h3 {[%clk 0:00:32.6]} 20... b4
{[%clk 0:00:33]} 21. Ne2 {[%clk 0:00:28.6]} 21... Nh4 {[%clk 0:00:23]} 22. Nd4
{[%clk 0:00:22.5]} 22... Nxg2 {[%clk 0:00:16.5]} 23. Kxg2 {[%clk 0:00:19.1]}
23... Bd7 {[%clk 0:00:14.5]} 24. Bb2 {[%clk 0:00:17.7]} 24... Bb8 {[%clk
0:00:13.7]} 25. f4 {[%clk 0:00:17.2]} 25... O-O {[%clk 0:00:12.3]} 26. Rac1
{[%clk 0:00:17.5]} 26... Qe7 {[%clk 0:00:11.3]} 27. Nf5 {[%clk 0:00:17.5]} 27...
Bxf5 {[%clk 0:00:11]} 28. gxf5 {[%clk 0:00:18.4]} 28... Re8 {[%clk 0:00:08]} 29.
Rce1 {[%clk 0:00:15.4]} 29... Ba7 {[%clk 0:00:06.5]} 30. Kh2 {[%clk 0:00:14.7]}
30... Bb6 {[%clk 0:00:05.9]} 31. Rg1 {[%clk 0:00:14.8]} 31... Nh5 {[%clk
0:00:03.8]} 32. Qg4 {[%clk 0:00:15]} 32... g6 {[%clk 0:00:03.4]} 33. fxg6 {[%clk
0:00:15.3]} 33... Ra3 {[%clk 0:00:01.3]} 34. gxf7+ {[%clk 0:00:14.9]} 34... Kxf7
{[%clk 0:00:01.5]} 35. Qg6+ {[%clk 0:00:15.4]} 35... Kf8 {[%clk 0:00:01.2]} 36.
Qg8# {[%clk 0:00:16.3]} 1-0

[Event "*** Titled Tuesday Blitz"]
[Site "Chess.com"]
[Date "2021.03.16"]
[Round "6"]
[White "Playgood28"]
[Black "GM_LOADING"]
[Result "0-1"]
[WhiteElo "2280"]
[BlackElo "2557"]
[TimeControl "180+1"]
[EndTime "11:06:13 PDT"]
[Termination "GM_LOADING won by resignation"]

1. d4 {[%clk 0:03:00.9]} 1... Nf6 {[%clk 0:02:56.7]} 2. c4 {[%clk 0:03:00.4]}
2... e6 {[%clk 0:02:55.6]} 3. Nc3 {[%clk 0:03:00.1]} 3... Bb4 {[%clk 0:02:56.1]}
4. Qc2 {[%clk 0:03:00]} 4... Nc6 {[%clk 0:02:56.3]} 5. e3 {[%clk 0:02:58.8]}
5... e5 {[%clk 0:02:56.3]} 6. a3 {[%clk 0:02:52.6]} 6... Bxc3+ {[%clk
0:02:54.8]} 7. bxc3 {[%clk 0:02:51.8]} 7... O-O {[%clk 0:02:52.8]} 8. Nf3 {[%clk
0:02:45.4]} 8... d6 {[%clk 0:02:52.7]} 9. Be2 {[%clk 0:02:44.1]} 9... Bg4 {[%clk
0:02:52.3]} 10. a4 {[%clk 0:02:42.8]} 10... b6 {[%clk 0:02:47.5]} 11. h3 {[%clk
0:02:41.1]} 11... Bh5 {[%clk 0:02:46.5]} 12. O-O {[%clk 0:02:38.5]} 12... Re8
{[%clk 0:02:40.2]} 13. Rd1 {[%clk 0:02:23.8]} 13... Qe7 {[%clk 0:02:37.3]} 14.
c5 {[%clk 0:02:11.5]} 14... bxc5 {[%clk 0:02:26.6]} 15. dxc5 {[%clk 0:02:10.8]}
15... d5 {[%clk 0:02:26.4]} 16. Ba3 {[%clk 0:01:55.9]} 16... a6 {[%clk
0:02:18.8]} 17. Rab1 {[%clk 0:01:45.1]} 17... e4 {[%clk 0:02:08.2]} 18. Nd4
{[%clk 0:01:39.8]} 18... Bxe2 {[%clk 0:02:07.9]} 19. Nxc6 {[%clk 0:01:36.2]}
19... Qd7 {[%clk 0:02:05.3]} 20. Qxe2 {[%clk 0:01:28.4]} 20... Qxc6 {[%clk
0:02:04.5]} 21. Qc2 {[%clk 0:01:21.4]} 21... Red8 {[%clk 0:01:17.7]} 22. c4
{[%clk 0:01:19.2]} 22... h6 {[%clk 0:01:05.8]} 23. cxd5 {[%clk 0:01:15.9]} 23...
Rxd5 {[%clk 0:01:04.7]} 24. Rxd5 {[%clk 0:01:12.2]} 24... Qxd5 {[%clk
0:01:05.6]} 25. c6 {[%clk 0:01:07]} 25... Re8 {[%clk 0:00:58.8]} 26. Rb7 {[%clk
0:01:04.2]} 26... Qd8 {[%clk 0:00:53.2]} 27. Bb4 {[%clk 0:00:56.6]} 27... Re6
{[%clk 0:00:50.4]} 28. Ba5 {[%clk 0:00:54.9]} 28... Ne8 {[%clk 0:00:40.6]} 29.
Qb3 {[%clk 0:00:47]} 29... Kh7 {[%clk 0:00:36.8]} 30. Rb8 {[%clk 0:00:45.3]}
30... Qd6 {[%clk 0:00:34.2]} 31. Qc4 {[%clk 0:00:31.3]} 31... Nf6 {[%clk
0:00:26.6]} 32. Rb7 {[%clk 0:00:22.4]} 32... Qxc6 {[%clk 0:00:22.8]} 33. Rxc7
{[%clk 0:00:20]} 33... Qd6 {[%clk 0:00:17.7]} 34. Rc8 {[%clk 0:00:16.4]} 34...
Qd1+ {[%clk 0:00:16.6]} 35. Kh2 {[%clk 0:00:16.1]} 35... Qh5 {[%clk 0:00:14.2]}
36. Kg1 {[%clk 0:00:14.6]} 36... Qxa5 {[%clk 0:00:13]} 0-1